bitfinex/quotes_BTCUSD_20250519
["timestamp","ask_amount","ask_price","bid_price","bid_amount"]
[1747614745931,1.16189306,105770.0,105760.0,0.022]
[1747614746168,1.17189306,105770.0,105760.0,0.022]
[1747614746398,1.20281704,105770.0,105760.0,0.022]
[1747614746604,1.30667331,105770.0,105760.0,0.022]
[1747614746814,1.28667331,105770.0,105760.0,0.02010794]
[1747614747027,0.86042442,105770.0,105760.0,0.02010794]
[1747614747240,1.36222354,105770.0,105760.0,0.02010794]
[1747614747459,1.36122354,105770.0,105760.0,0.02010794]
[1747614747682,1.72236813,105770.0,105760.0,0.02010794]
[1747614747884,1.72836813,105770.0,105760.0,0.02110794]
[1747614748086,1.36667667,105770.0,105760.0,0.02110794]
[1747614748732,1.72782126,105770.0,105760.0,0.02110794]
[1747614749109,1.73886485,105770.0,105760.0,0.01354613]
[1747614749569,1.72886485,105770.0,105760.0,0.00598432]
[1747614749775,1.79363195,105770.0,105760.0,0.00598432]
[1747614749976,1.04408739,105760.0,105750.0,0.0029951]
[1747614750208,1.26375119,105760.0,105750.0,0.0029951]
[1747614750431,0.82620861,105760.0,105750.0,0.0029951]
[1747614750638,1.18839679,105760.0,105750.0,0.0029951]
[1747614750856,0.75450249,105760.0,105750.0,0.0029951]
[1747614751081,1.39318249,105760.0,105750.0,0.0029951]
[1747614751291,1.39718249,105760.0,105750.0,0.0029951]
[1747614751498,1.390652,105760.0,105750.0,0.0029951]
[1747614751708,1.343652,105760.0,105750.0,0.0029951]
[1747614752354,0.336172,105760.0,105750.0,0.0029951]
[1747614752539,0.302872,105760.0,105750.0,0.0029951]
[1747614752775,0.941392,105760.0,105750.0,0.0029951]
[1747614753195,0.01891691,105720.0,105710.0,0.36218818]
[1747614753426,0.21755516,105720.0,105710.0,0.0973094]
[1747614753655,0.00945823,105720.0,105710.0,0.67707269]
[1747614753862,0.01891664,105720.0,105710.0,0.67707269]
[1747614754072,0.01145724,105730.0,105720.0,0.19863781]
[1747614754285,0.002,105730.0,105720.0,0.6770523]
[1747614754493,0.03085465,105730.0,105720.0,0.6770523]
[1747614754734,0.22001662,105730.0,105720.0,0.55136714]
[1747614754940,0.21055902,105730.0,105720.0,0.1986379]
[1747614755144,0.03085519,105730.0,105720.0,0.1986379]
[1747614755351,0.0024823,105730.0,105720.0,0.68651124]
[1747614755561,0.01293963,105730.0,105720.0,0.0993094]
[1747614755773,0.0034823,105730.0,105720.0,1.02194372]
[1747614755989,0.002,105750.0,105740.0,0.21751357]
[1747614756218,0.01145546,105750.0,105740.0,0.67715552]
[1747614756429,0.002,105750.0,105740.0,0.71915552]
[1747614756643,0.002,105750.0,105740.0,1.05915552]
[1747614757076,0.002,105750.0,105740.0,1.07369637]
[1747614757305,0.003,105750.0,105740.0,1.07669637]
[1747614757528,0.002,105770.0,105760.0,0.59747244]
[1747614757737,0.002,105770.0,105760.0,1.05697002]
[1747614758157,0.002,105770.0,105760.0,1.07151087]
[1747614758557,0.002,105770.0,105760.0,0.71521283]
[1747614758684,0.002,105770.0,105760.0,1.07740101]
[1747614759727,0.003,105770.0,105760.0,1.08240101]
[1747614760319,0.002,105770.0,105760.0,1.07740101]
[1747614760871,0.0031,105770.0,105760.0,1.08040101]
[1747614761122,0.01155367,105770.0,105760.0,1.06286016]
[1747614761343,0.0021,105770.0,105760.0,1.06286016]
[1747614761543,0.0041,105770.0,105760.0,1.07386016]
[1747614762163,0.0041,105770.0,105760.0,1.08840101]
[1747614762365,0.0041,105770.0,105760.0,1.09840101]
[1747614762572,0.0041,105770.0,105760.0,1.08386016]
[1747614763486,0.0041,105770.0,105760.0,1.09129058]
[1747614765139,0.0041,105770.0,105760.0,0.7291024]
[1747614765340,0.0041,105770.0,105760.0,1.09129058]
[1747614765761,0.0041,105770.0,105760.0,1.10583143]
[1747614765970,0.0041,105770.0,105760.0,1.13210682]
[1747614766773,0.0041,105770.0,105760.0,1.13445016]
[1747614767005,0.0041,105770.0,105760.0,1.10817477]
[1747614767678,0.0041,105770.0,105760.0,1.40591332]
[1747614767884,0.0041,105770.0,105760.0,1.37137247]
[1747614768098,0.23100527,105770.0,105760.0,0.41171185]
[1747614768306,0.03246145,105770.0,105760.0,0.60290276]
[1747614768939,0.03246137,105770.0,105760.0,0.60290276]
[1747614769128,0.03246137,105770.0,105760.0,0.94290276]
[1747614769573,0.04191557,105770.0,105760.0,0.68144574]
[1747614769780,0.04191557,105770.0,105760.0,0.68112681]
[1747614769781,0.24045912,105770.0,105760.0,0.68112681]
[1747614769917,0.04191539,105770.0,105760.0,0.68112681]
[1747614770131,0.24045974,105770.0,105760.0,0.32221724]
[1747614770325,0.03246207,105770.0,105760.0,0.34112708]
[1747614770532,0.04191627,105770.0,105760.0,0.33167234]
[1747614770728,0.03246207,105770.0,105760.0,0.34112708]
[1747614771995,0.03246216,105770.0,105760.0,0.34112708]
[1747614772311,0.04191654,105770.0,105760.0,0.34112717]
[1747614772508,0.21269947,105770.0,105760.0,0.02634533]
[1747614772738,0.23100563,105770.0,105760.0,0.22490775]
[1747614772938,0.02300761,105770.0,105760.0,0.23436249]
[1747614773151,0.0041,105770.0,105760.0,0.69386007]
[1747614774173,0.0041,105770.0,105760.0,1.06486007]
[1747614774874,0.0041,105770.0,105760.0,1.03386007]
[1747614776411,0.01355376,105770.0,105760.0,1.03386007]
[1747614776617,0.01355367,105770.0,105760.0,1.03386007]
[1747614776821,0.01355367,105770.0,105760.0,0.67167189]
[1747614777173,0.0041,105770.0,105760.0,0.67167189]
[1747614777568,0.01355367,105770.0,105760.0,0.67167189]
[1747614777851,0.0041,105770.0,105760.0,0.67167189]
[1747614778009,0.01355367,105770.0,105760.0,0.67167189]
[1747614778611,0.0041,105770.0,105760.0,0.67167189]
[1747614780204,0.0041,105770.0,105760.0,0.71871274]
[1747614780423,0.003,105790.0,105780.0,0.21743131]
[1747614780623,0.003,105790.0,105780.0,0.34754071]
[1747614781028,0.003,105790.0,105780.0,0.37844071]
[1747614781610,0.003,105790.0,105780.0,0.37858508]
[1747614781813,0.005,105790.0,105780.0,0.76478983]
[1747614781975,0.004,105790.0,105780.0,0.81037459]
[1747614782373,0.005,105790.0,105780.0,0.81537459]
[1747614782579,0.005,105790.0,105780.0,0.71713374]
[1747614782780,0.03335645,105790.0,105780.0,0.68135645]
[1747614782979,0.21295853,105790.0,105780.0,0.68135645]
[1747614783161,0.0041,105790.0,105780.0,0.6868094]
[1747614783532,0.02400421,105790.0,105780.0,0.67290323]
[1747614783737,0.02400421,105790.0,105780.0,0.6918094]
[1747614783971,0.0051,105790.0,105780.0,0.6918094]
[1747614784970,0.0051,105790.0,105780.0,0.7239094]
[1747614785175,0.0051,105790.0,105780.0,1.20365025]
[1747614785411,0.0051,105790.0,105780.0,1.20999443]
[1747614786370,0.000788,105800.0,105790.0,0.21741076]
[1747614786562,0.000788,105800.0,105790.0,0.31472016]
[1747614787129,0.000788,105800.0,105790.0,0.65472016]
[1747614787564,0.000788,105800.0,105790.0,0.65572016]
[1747614787795,0.000788,105800.0,105790.0,0.65672016]
[1747614788022,0.000788,105800.0,105790.0,0.74165115]
[1747614788226,0.000788,105800.0,105790.0,0.76803992]
[1747614788822,0.000788,105800.0,105790.0,1.18173992]
[1747614791572,0.000788,105800.0,105790.0,1.19173992]
[1747614791758,0.000788,105800.0,105790.0,1.29121992]
[1747614791976,0.002,105810.0,105800.0,0.26243106]
[1747614792176,0.002,105810.0,105800.0,0.42662923]
[1747614793631,0.002,105830.0,105820.0,0.21734913]
[1747614793857,0.002,105830.0,105820.0,1.0947473]
[1747614794881,0.002,105830.0,105820.0,0.68219167]
[1747614795086,0.002,105830.0,105820.0,0.72993252]
[1747614795293,0.002,105830.0,105820.0,0.73093252]
[1747614795490,0.002,105830.0,105820.0,0.74671931]
[1747614796553,0.002,105830.0,105820.0,0.74471931]
[1747614796729,0.002,105830.0,105820.0,0.74871931]
[1747614796955,0.003,105830.0,105820.0,0.75271931]
[1747614797733,0.0001,105850.0,105840.0,0.55730805]
[1747614797953,0.0001,105850.0,105840.0,0.65461745]
[1747614798610,0.0095467,105850.0,105840.0,0.65461745]
[1747614798815,0.0001,105850.0,105840.0,0.65461745]
[1747614799185,0.0001,105850.0,105840.0,0.68684814]
[1747614800006,0.0001,105850.0,105840.0,0.68784814]
[1747614800221,0.0001,105850.0,105840.0,0.70238899]
[1747614800444,0.0315,105870.0,105860.0,0.557267]
[1747614800648,0.04094474,105870.0,105860.0,0.6545764]
[1747614801273,0.0315,105870.0,105860.0,0.66046654]
[1747614801481,0.57318638,105880.0,105870.0,0.21724647]
[1747614801689,0.18407523,105880.0,105870.0,0.30511095]
[1747614801899,0.17511449,105880.0,105870.0,0.31455605]
[1747614802100,0.18455914,105880.0,105870.0,0.31455605]
[1747614802304,0.17511449,105880.0,105870.0,0.32400106]
[1747614802481,0.18455905,105880.0,105870.0,0.3298912]
[1747614802725,0.18455905,105880.0,105870.0,0.10319954]
[1747614802726,0.35456436,105880.0,105870.0,0.10319954]
[1747614802934,0.34511989,105880.0,105870.0,0.00589014]
[1747614803169,0.34611989,105880.0,105870.0,0.00589014]
[1747614803908,0.27176549,105880.0,105870.0,0.00589014]
[1747614804108,0.04889046,105870.0,105860.0,0.58204636]
[1747614804373,0.28709219,105870.0,105860.0,0.66046387]
[1747614804670,0.08873573,105870.0,105860.0,0.68035558]
[1747614805004,0.00944474,105870.0,105860.0,0.68035558]
[1747614805225,0.09571643,105880.0,105870.0,0.21724674]
[1747614805491,0.08627134,105880.0,105870.0,0.30511113]
[1747614805645,0.10416046,105880.0,105870.0,0.32400141]
[1747614805873,0.10316037,105880.0,105870.0,0.33344633]
[1747614806090,0.09371581,105880.0,105870.0,0.32989155]
[1747614806261,0.2826096,105880.0,105870.0,0.301556]
[1747614806447,0.2826096,105880.0,105870.0,0.31100145]
[1747614806652,0.2836096,105880.0,105870.0,0.32044663]
[1747614806863,0.2846096,105880.0,105870.0,0.32044681]
[1747614807081,0.2846096,105880.0,105870.0,0.33933709]
[1747614807281,0.08527187,105880.0,105870.0,0.33089155]
[1747614807465,0.04332705,105880.0,105870.0,0.34033647]
[1747614807677,0.04332722,105880.0,105870.0,0.34133647]
[1747614808067,0.06221571,105880.0,105870.0,0.34133647]
[1747614808308,0.05277133,105880.0,105870.0,0.34133647]
[1747614808577,0.05277116,105880.0,105870.0,0.34133647]
[1747614808773,0.0015832,105880.0,105870.0,0.34133647]
[1747614809336,0.0015832,105880.0,105870.0,0.68133647]
[1747614809542,0.0015832,105880.0,105870.0,0.69587732]
[1747614810505,0.0015832,105880.0,105870.0,0.7057418]
[1747614811489,0.0015832,105880.0,105870.0,0.69120095]
[1747614811920,0.0015832,105880.0,105870.0,0.7057418]
[1747614812974,0.01102714,105880.0,105870.0,1.08601102]
[1747614813205,0.01102714,105880.0,105870.0,1.1123008]
[1747614813376,0.0339832,105880.0,105870.0,1.1123008]
[1747614813741,0.04342714,105880.0,105870.0,1.1123008]
[1747614813951,0.0339832,105880.0,105870.0,1.1123008]
[1747614814344,0.04342722,105880.0,105870.0,1.1123008]
[1747614814550,0.0339832,105880.0,105870.0,1.1123008]
[1747614814749,0.04342705,105880.0,105870.0,1.1123008]
[1747614814964,0.04342714,105880.0,105870.0,1.1123008]
[1747614815160,0.04342705,105880.0,105870.0,0.6986008]
[1747614815381,0.05287107,105880.0,105870.0,0.6986008]
[1747614815639,0.04342705,105880.0,105870.0,0.6986008]
[1747614816012,0.04342705,105880.0,105870.0,0.68873632]
[1747614816226,0.24176442,105880.0,105870.0,0.6792914]
[1747614816399,0.27226495,105880.0,105870.0,0.01528982]
[1747614816781,0.27226495,105880.0,105870.0,0.03868675]
[1747614816992,0.26282075,105880.0,105870.0,0.03868675]
[1747614818319,0.26282075,105880.0,105870.0,0.01528982]
[1747614818893,0.26282075,105880.0,105870.0,0.00789014]
[1747614819466,0.26282048,105880.0,105870.0,0.00789014]
[1747614819683,0.28170889,105880.0,105870.0,0.00789014]
[1747614820449,0.28170889,105880.0,105870.0,0.01733568]
[1747614820693,0.24176424,105880.0,105870.0,0.34863583]
[1747614820902,0.04342714,105880.0,105870.0,0.36563692]
[1747614821107,0.0339832,105880.0,105870.0,0.36563692]
[1747614821310,0.04342714,105880.0,105870.0,0.36563692]
[1747614821510,0.05287125,105880.0,105870.0,0.36563692]
[1747614821731,0.0015832,105880.0,105870.0,0.3730366]
[1747614822218,0.0015832,105880.0,105870.0,0.7130366]
[1747614822426,0.0015832,105880.0,105870.0,0.73939154]
[1747614822867,0.0015832,105880.0,105870.0,0.76205682]
[1747614823070,0.0015832,105880.0,105870.0,0.73939154]
[1747614825184,0.0015832,105880.0,105870.0,0.75393239]
[1747614825561,0.09092654,105900.0,105890.0,0.21720544]
[1747614825795,0.05048421,105900.0,105890.0,0.35701201]
[1747614826059,0.0001,105900.0,105890.0,0.7234029]
[1747614826269,0.0001,105900.0,105890.0,0.74606818]
[1747614826684,0.0001,105900.0,105890.0,0.7234029]
[1747614827037,0.0031,105900.0,105890.0,0.73753364]
[1747614827467,0.0001,105900.0,105890.0,0.74342378]
[1747614827630,0.0031,105900.0,105890.0,0.74342378]
[1747614828491,0.0031,105900.0,105890.0,0.75406165]
[1747614828733,0.0001,105900.0,105890.0,0.75606165]
[1747614829212,0.0001,105900.0,105890.0,0.78072693]
[1747614829737,0.0001,105900.0,105890.0,0.75806165]
[1747614829956,0.0001,105900.0,105890.0,0.80726811]
[1747614830184,0.0001,105900.0,105890.0,0.78290416]
[1747614830422,0.0001,105900.0,105890.0,0.75806165]
[1747614830892,0.0001,105900.0,105890.0,1.17176165]
[1747614831104,0.0002,105900.0,105890.0,1.17176165]
[1747614831968,0.0002,105900.0,105890.0,1.1863025]
[1747614832169,0.0002,105900.0,105890.0,1.21114501]
[1747614832386,0.0002,105900.0,105890.0,1.23550896]
[1747614833228,0.0002,105900.0,105890.0,1.26810896]
[1747614833429,0.0002,105900.0,105890.0,1.81870896]
[1747614833670,0.0002,105900.0,105890.0,1.86867106]
[1747614833880,0.0001,105920.0,105910.0,0.55716443]
[1747614834087,0.0002449,105920.0,105910.0,0.71036755]
[1747614834293,0.0002449,105920.0,105910.0,0.75957401]
[1747614834493,0.0002449,105920.0,105910.0,0.76057401]
[1747614834708,0.0002449,105920.0,105910.0,0.79357401]
[1747614834909,0.0002449,105920.0,105910.0,0.80811486]
[1747614835120,0.0002449,105920.0,105910.0,0.81011486]
[1747614835295,0.0002449,105920.0,105910.0,0.81211486]
[1747614835668,0.0002449,105920.0,105910.0,0.818005]
[1747614836752,0.0002449,105920.0,105910.0,0.917485]
[1747614836960,0.0003449,105920.0,105910.0,0.818005]
[1747614837439,0.0003449,105920.0,105910.0,1.03320105]
[1747614837635,0.0003449,105920.0,105910.0,0.52893577]
[1747614837841,0.27024837,105920.0,105910.0,0.16409326]
[1747614838063,0.27024837,105920.0,105910.0,0.10819954]
[1747614838262,0.27024784,105920.0,105910.0,0.29703912]
[1747614838461,0.28912974,105920.0,105910.0,0.10819954]
[1747614838773,0.28912974,105920.0,105910.0,0.11561313]
[1747614838978,0.27024855,105920.0,105910.0,0.11561313]
[1747614839171,0.27024855,105920.0,105910.0,0.16216296]
[1747614840353,0.26080773,105920.0,105910.0,0.16216296]
[1747614840762,0.26080773,105920.0,105910.0,0.01830373]
[1747614842133,0.26080773,105920.0,105910.0,0.01089014]
[1747614842314,0.26080773,105920.0,105910.0,0.00889014]
[1747614842695,0.26280773,105920.0,105910.0,0.00889014]
[1747614842900,0.26280773,105920.0,105910.0,0.00689014]
[1747614843133,0.26480773,105920.0,105910.0,0.00689014]
[1747614843707,0.27424855,105920.0,105910.0,0.00689014]
[1747614845100,0.28368901,105920.0,105910.0,0.3119228]
[1747614845303,0.28368901,105920.0,105910.0,0.3655749]
[1747614845779,0.28368901,105920.0,105910.0,0.37501678]
[1747614845932,0.0043449,105920.0,105910.0,0.3561331]
[1747614846138,0.02322573,105920.0,105910.0,0.77733081]
[1747614846338,0.27504955,105920.0,105910.0,0.15785155]
[1747614846541,0.27444819,105920.0,105910.0,0.15785155]
[1747614846773,0.02832414,105910.0,105900.0,0.55718158]
[1747614846965,0.09072396,105910.0,105900.0,0.65649098]
[1747614847409,0.0043449,105920.0,105910.0,0.55716426]
[1747614847622,0.0023449,105920.0,105910.0,0.67931617]
[1747614847806,0.01178527,105920.0,105910.0,0.65447366]
[1747614847982,0.0023449,105920.0,105910.0,0.65447366]
[1747614848804,0.0003449,105920.0,105910.0,0.65447366]
[1747614849124,0.0003449,105920.0,105910.0,0.70734652]
[1747614849329,0.0003449,105920.0,105910.0,1.13558737]
[1747614849660,0.0003449,105920.0,105910.0,1.16638737]
[1747614849879,0.0023449,105920.0,105910.0,1.16638737]
[1747614850081,0.0043449,105920.0,105910.0,1.19273299]
[1747614850281,0.0043449,105920.0,105910.0,1.22503299]
[1747614850692,0.0023449,105920.0,105910.0,1.22503299]
[1747614850892,0.0023449,105920.0,105910.0,1.22603299]
[1747614851090,0.0023449,105920.0,105910.0,1.08371451]
[1747614852019,0.0023449,105920.0,105910.0,1.08571451]
[1747614852571,0.0023449,105920.0,105910.0,1.11374486]
[1747614853059,0.0023449,105920.0,105910.0,1.08571451]
[1747614853271,0.0023449,105920.0,105910.0,1.14504486]
[1747614853440,0.0023449,105920.0,105910.0,1.16988737]
[1747614853845,0.0023449,105920.0,105910.0,1.18455726]
[1747614854049,0.0023449,105920.0,105910.0,1.97994412]
[1747614854226,0.0023449,105920.0,105910.0,1.22743012]
[1747614854591,0.0023449,105920.0,105910.0,1.62039451]
[1747614854879,0.0327449,105920.0,105910.0,0.72173231]
[1747614855025,0.35854234,105920.0,105910.0,0.5140094]
[1747614855437,0.3491017,105920.0,105910.0,0.72173257]
[1747614855638,0.3491017,105920.0,105910.0,0.71229086]
[1747614855838,0.3491017,105920.0,105910.0,0.72173266]
[1747614856061,0.35854225,105920.0,105910.0,0.73117437]
[1747614856305,0.3491017,105920.0,105910.0,0.72173266]
[1747614856512,0.2737473,105920.0,105910.0,0.7311741]
[1747614856733,0.29262867,105920.0,105910.0,0.52345137]
[1747614856937,0.2404473,105920.0,105910.0,0.53289308]
[1747614857142,0.2593284,105920.0,105910.0,0.5140094]
[1747614857382,0.24988776,105920.0,105910.0,0.72173248]
[1747614857595,0.24988776,105920.0,105910.0,0.71229086]
[1747614857802,0.24988776,105920.0,105910.0,0.72173257]
[1747614858018,0.24988776,105920.0,105910.0,0.5140094]
[1747614858019,0.34710259,105920.0,105910.0,0.5140094]
[1747614858234,0.34710259,105920.0,105910.0,0.003]
[1747614858883,0.33766195,105920.0,105910.0,0.003]
[1747614860895,0.26230755,105920.0,105910.0,0.003]
[1747614862317,0.27174819,105920.0,105910.0,0.003]
[1747614862545,0.27174819,105920.0,105910.0,0.01244197]
[1747614862741,0.27174819,105920.0,105910.0,0.003]
[1747614862982,0.29062956,105920.0,105910.0,0.20128146]
[1747614863160,0.29062956,105920.0,105910.0,0.01244197]
[1747614863364,0.29062947,105920.0,105910.0,0.02188385]
[1747614863598,0.29062947,105920.0,105910.0,0.01244197]
[1747614863797,0.0640449,105920.0,105910.0,0.23149474]
[1747614863967,0.28118866,105920.0,105910.0,0.21072343]
[1747614864195,0.29062956,105920.0,105910.0,0.22016514]
[1747614864397,0.29062956,105920.0,105910.0,0.21072343]
[1747614864569,0.29062956,105920.0,105910.0,0.22016523]
[1747614864951,0.26230755,105920.0,105910.0,0.003]
[1747614867142,0.47610561,105920.0,105910.0,0.003]
[1747614867955,0.57341501,105920.0,105910.0,0.002]
[1747614868133,0.58795586,105920.0,105910.0,0.002]
[1747614868332,0.59656965,105920.0,105910.0,0.002]
[1747614868553,0.60723326,105920.0,105910.0,0.002]
[1747614869402,0.26208138,105910.0,105900.0,0.002]
[1747614869568,0.57318884,105910.0,105900.0,0.002]
[1747614869739,0.35939078,105910.0,105900.0,0.002]
[1747614869960,0.57318884,105910.0,105900.0,0.002]
[1747614870408,0.98082884,105910.0,105900.0,0.002]
[1747614870621,0.76703078,105910.0,105900.0,0.002]
[1747614870811,0.98744263,105910.0,105900.0,0.002]
[1747614870962,0.77664457,105910.0,105900.0,0.002]
[1747614871165,0.99044263,105910.0,105900.0,0.002]
[1747614871801,1.29413594,105910.0,105900.0,0.002]
[1747614872041,0.86653982,105910.0,105900.0,0.002]
[1747614872247,1.08333788,105910.0,105900.0,0.002]
[1747614872420,1.08333788,105910.0,105880.0,0.002]
[1747614872421,0.48306019,105890.0,105880.0,0.002]
[1747614872628,1.10124959,105890.0,105880.0,0.002]
[1747614873018,0.88745153,105890.0,105880.0,0.002]
[1747614873228,0.26926213,105890.0,105880.0,0.002]
[1747614873447,0.52978213,105890.0,105880.0,0.002]
[1747614873649,0.52033882,105890.0,105880.0,0.002]
[1747614874059,0.52233882,105890.0,105880.0,0.002]
[1747614877169,0.2494058,105890.0,105880.0,0.002]
[1747614877368,0.27306249,105890.0,105880.0,0.002]
[1747614878439,0.58416995,105890.0,105880.0,0.002]
[1747614878828,0.37037189,105890.0,105880.0,0.002]
[1747614879454,0.88849189,105890.0,105880.0,0.002]
[1747614879633,1.10228995,105890.0,105880.0,0.002]
[1747614880040,0.88849189,105890.0,105880.0,0.002]
[1747614880218,1.1168308,105890.0,105880.0,0.002]
[1747614880418,1.52833679,105890.0,105880.0,0.002]
[1747614880624,1.4568308,105890.0,105880.0,0.002]
[1747614880820,1.44228995,105890.0,105880.0,0.002]
[1747614881045,1.44795655,105890.0,105880.0,0.002]
[1747614881475,1.45095655,105890.0,105880.0,0.002]
[1747614881879,1.44436995,105890.0,105880.0,0.002]
[1747614882082,1.10236995,105890.0,105880.0,0.002]
[1747614882496,1.10636995,105890.0,105880.0,0.002]
[1747614883715,0.37537189,105890.0,105880.0,0.002]
[1747614883917,1.10492995,105890.0,105880.0,0.002]
[1747614884116,1.10468995,105890.0,105880.0,0.002]
[1747614884533,0.58916995,105890.0,105880.0,0.002]
[1747614884770,0.89069189,105890.0,105880.0,0.002]
[1747614885383,1.10448995,105890.0,105880.0,0.002]
[1747614886073,0.37537189,105890.0,105880.0,0.002]
[1747614886210,0.79262249,105890.0,105880.0,0.002]
[1747614886631,0.50556249,105890.0,105880.0,0.20978193]
[1747614886846,0.50556249,105890.0,105880.0,0.20978211]
[1747614887720,0.24496249,105890.0,105880.0,0.20978211]
[1747614888332,0.21476249,105890.0,105880.0,0.20978211]
[1747614888530,0.21476249,105890.0,105880.0,0.21922631]
[1747614888733,0.02588671,105890.0,105880.0,0.22867033]
[1747614888955,0.03533038,105890.0,105880.0,0.22867033]
[1747614889183,0.22420562,105890.0,105880.0,0.21922649]
[1747614889383,0.2147624,105890.0,105880.0,0.21922649]
[1747614889584,0.20531891,105890.0,105880.0,0.20978211]
[1747614889779,0.20531891,105890.0,105880.0,0.20033764]
[1747614890158,0.20531891,105890.0,105880.0,0.002]
[1747614890370,0.19587524,105890.0,105880.0,0.002]
[1747614890756,0.19587524,105890.0,105880.0,0.20033764]
[1747614890960,0.19587524,105890.0,105880.0,0.20978211]
[1747614891381,0.19587524,105890.0,105880.0,0.2192264]
[1747614891593,0.19587524,105890.0,105880.0,0.002]
[1747614891793,0.19587524,105890.0,105880.0,0.20978229]
[1747614892394,0.02588653,105890.0,105880.0,0.23811507]
[1747614893130,0.03533011,105890.0,105880.0,0.23811507]
[1747614893331,0.03533011,105890.0,105880.0,0.24407142]
[1747614893892,0.02588635,105890.0,105880.0,0.24407142]
[1747614894112,0.03532966,105890.0,105880.0,0.24407142]
[1747614894335,0.01644313,105890.0,105880.0,0.24407142]
[1747614894557,0.007,105890.0,105880.0,0.24407142]
[1747614894760,0.02588626,105890.0,105880.0,0.24407142]
[1747614895102,0.04477333,105890.0,105880.0,0.24407142]
[1747614895431,0.02588626,105890.0,105880.0,0.24407142]
[1747614895619,0.03532975,105890.0,105880.0,0.24407142]
[1747614895823,0.04477315,105890.0,105880.0,0.24407142]
[1747614897962,0.04477378,105890.0,105880.0,0.5746274]
[1747614898187,0.23364902,105890.0,105880.0,0.37574899]
[1747614898396,0.22420625,105890.0,105880.0,0.55573855]
[1747614898824,0.22420625,105890.0,105880.0,0.56518293]
[1747614898975,0.22420625,105890.0,105880.0,0.57462722]
[1747614899822,0.22420625,105890.0,105880.0,0.34795635]
[1747614899823,0.25640625,105890.0,105880.0,0.34795635]
[1747614900129,0.58957013,105890.0,105880.0,0.00795635]
[1747614900331,0.37577207,105890.0,105880.0,0.00795635]
[1747614900930,0.58957013,105890.0,105880.0,0.00795635]
[1747614901290,0.5961895,105890.0,105880.0,0.00795635]
[1747614902099,0.5961895,105890.0,105880.0,0.002]
[1747614902312,0.38239144,105890.0,105880.0,0.002]
[1747614902521,0.5961895,105890.0,105880.0,0.002]
[1747614902928,0.28508204,105890.0,105880.0,0.20033764]
[1747614903136,0.04591937,105890.0,105880.0,0.20033755]
[1747614903320,0.21203819,105890.0,105880.0,0.20033755]
[1747614903792,0.20541882,105890.0,105880.0,0.002]
[1747614903976,0.20541882,105890.0,105880.0,0.20033755]
[1747614903977,0.23801882,105890.0,105880.0,0.20033755]
[1747614904178,0.23801882,105890.0,105880.0,0.002]
[1747614904379,0.23801882,105890.0,105880.0,0.02088912]
[1747614904590,0.0071,105890.0,105880.0,0.57811489]
[1747614904792,0.0071,105890.0,105880.0,0.70662429]
[1747614904995,0.0071,105890.0,105880.0,1.14678972]
[1747614905207,0.0071,105890.0,105880.0,1.69993057]
[1747614905418,0.03810727,105920.0,105910.0,0.55716443]
[1747614905628,0.04814962,105920.0,105910.0,0.55716443]
[1747614905837,0.04815042,105920.0,105910.0,0.55716443]
[1747614906035,0.01982745,105920.0,105910.0,0.55716443]
[1747614906238,0.0003449,105920.0,105910.0,0.55716443]
[1747614906662,0.0023449,105920.0,105910.0,0.65447383]
[1747614906866,0.00225284,105920.0,105910.0,0.74908331]
[1747614907069,0.00225284,105920.0,105910.0,0.77548687]
[1747614907519,0.00325284,105920.0,105910.0,0.74908331]
[1747614907718,0.01269312,105920.0,105910.0,0.6604408]
[1747614907930,0.00325284,105920.0,105910.0,0.6604408]
[1747614908308,0.01269312,105920.0,105910.0,0.6604408]
[1747614908487,0.00125284,105920.0,105910.0,0.67778651]
[1747614908710,0.00125284,105920.0,105910.0,0.68178651]
[1747614908885,0.02957475,105920.0,105910.0,0.68178651]
[1747614909116,0.00969321,105920.0,105910.0,0.68178651]
[1747614909326,0.01913376,105920.0,105910.0,0.68178651]
[1747614909548,0.00025284,105920.0,105910.0,0.68578651]
[1747614909989,0.00025284,105920.0,105910.0,0.76412736]
[1747614910216,0.00025284,105920.0,105910.0,0.7904829]
[1747614910421,0.00025284,105920.0,105910.0,0.81532541]
[1747614910976,0.00025284,105920.0,105910.0,0.78896987]
[1747614911173,0.00025284,105920.0,105910.0,1.29476987]
[1747614911542,0.00025284,105920.0,105910.0,1.32110481]
[1747614911699,0.00025284,105920.0,105910.0,1.70846987]
[1747614911894,0.00025284,105920.0,105910.0,1.70103408]
[1747614912103,0.00025284,105920.0,105910.0,1.72950289]
[1747614913659,0.00025284,105920.0,105910.0,1.22370289]
[1747614913802,0.00025284,105920.0,105910.0,1.70099408]
[1747614914416,0.00025284,105920.0,105910.0,1.72946289]
[1747614914644,0.00025284,105920.0,105910.0,1.70099408]
[1747614915016,0.00025284,105920.0,105910.0,1.72946289]
[1747614915400,0.00025284,105920.0,105910.0,1.75778189]
[1747614915722,0.00025284,105920.0,105910.0,1.72931308]
[1747614915921,0.00025284,105920.0,105910.0,1.70447057]
[1747614916241,0.00025284,105920.0,105910.0,1.75778189]
[1747614917513,7.572e-05,105920.0,105910.0,1.75778189]
[1747614917688,7.572e-05,105920.0,105910.0,1.76778189]
[1747614917892,7.572e-05,105920.0,105910.0,2.20167739]
[1747614918431,7.572e-05,105920.0,105910.0,2.2090947]
[1747614918633,7.572e-05,105920.0,105910.0,1.61372788]
[1747614918840,7.572e-05,105920.0,105910.0,0.34576803]
[1747614919044,7.572e-05,105920.0,105910.0,0.0312942]
[1747614919045,0.34943359,105920.0,105910.0,0.0312942]
[1747614919478,0.34943359,105920.0,105910.0,0.0347692]
[1747614919944,0.33999277,105920.0,105910.0,0.0347692]
[1747614920147,0.33999277,105920.0,105910.0,0.23305066]
[1747614920815,0.33999277,105920.0,105910.0,0.02532723]
[1747614921022,0.33999277,105920.0,105910.0,0.008]
[1747614921347,0.07581662,105920.0,105910.0,0.21572308]
[1747614921549,0.09469825,105920.0,105910.0,0.22516443]
[1747614921760,0.10413933,105920.0,105910.0,0.22516461]
[1747614921974,0.08525726,105920.0,105910.0,0.23060596]
[1747614922193,0.08525726,105920.0,105910.0,0.56660596]
[1747614922194,0.00951609,105920.0,105910.0,0.56660596]
[1747614922395,0.02839763,105920.0,105910.0,0.56660596]
[1747614922651,0.03783862,105920.0,105910.0,0.56660596]
[1747614922823,0.28896244,105920.0,105910.0,0.55716461]
[1747614923182,0.28836108,105920.0,105910.0,0.56660605]
[1747614923740,0.09953933,105920.0,105910.0,0.56660605]
[1747614923966,0.10014069,105920.0,105910.0,0.56660605]
[1747614924369,0.05095862,105920.0,105910.0,0.5760474]
[1747614924570,0.06039961,105920.0,105910.0,0.5760474]
[1747614924745,0.24922136,105920.0,105910.0,0.54772308]